fUSD/lending_fUSD_20240329
["ID","MTS","AMOUNT","RATE_DAILY","PERIOD"]
[320902430,1711675855897,-986.06,0.00050958,120]
[320902431,1711675855906,-500.0,0.00050958,120]
[320902432,1711675855915,-697.96,0.00050958,120]
[320902433,1711675855924,-590.25,0.00050958,120]
[320902434,1711675855934,-624.42,0.00050958,120]
[320902435,1711675855943,-1907.0,0.00050958,120]
[320902436,1711675855953,-779.5,0.00050958,120]
[320902437,1711675855962,-7985.54,0.00050958,120]
[320902438,1711675855971,-500.0,0.00050958,120]
[320902439,1711675855981,-839.35,0.00050958,120]
[320902440,1711675855990,-1181.05,0.00050958,120]
[320902441,1711675855999,-940.66,0.00050958,120]
[320902442,1711675856009,-500.0,0.00050958,120]
[320902443,1711675856018,-500.0,0.00050958,120]
[320902444,1711675856027,-513.69,0.00050958,120]
[320902445,1711675856036,-750.42,0.00050958,120]
[320902446,1711675856046,-1164.0,0.00050958,120]
[320902447,1711675856055,-2440.77,0.00050958,120]
[320902448,1711675856065,-562.47883404,0.00050958,120]
[320902449,1711675856075,-612.46,0.00050958,120]
[320902450,1711675856085,-500.0,0.00050958,120]
[320902451,1711675856095,-704.19,0.00050958,120]
[320902452,1711675856105,-664.67,0.00050958,120]
[320902453,1711675856115,-595.63,0.00050958,120]
[320902454,1711675856125,-505.75,0.00050958,120]
[320902455,1711675856134,-500.0,0.00050958,120]
[320902456,1711675856143,-999.53,0.00050958,21]
[320902457,1711675856152,-2548.05,0.00050958,120]
[320902458,1711675856161,-1303.29,0.00050958,120]
[320902459,1711675856171,-1490.86,0.00050958,68]
[320902460,1711675856180,-1014.79,0.00050958,120]
[320902461,1711675856189,-603.95,0.00050958,120]
[320902462,1711675856198,-3227.52,0.00050958,120]
[320902463,1711675856207,-500.0,0.00050958,120]
[320902464,1711675856216,-1330.78,0.00050958,120]
[320902465,1711675856225,-755.61,0.00050958,120]
[320902466,1711675856234,-879.31,0.00050958,120]
[320902467,1711675856244,-1993.48,0.00050958,120]
[320902468,1711675856253,-903.53,0.00050958,120]
[320902469,1711675856262,-1300.93,0.00050958,120]
[320902470,1711675856272,-500.0,0.00050958,120]
[320902471,1711675856281,-589.78,0.00050958,120]
[320902472,1711675856290,-803.36,0.00050958,120]
[320902473,1711675856299,-959.41,0.00050958,120]
[320902474,1711675856309,-677.91,0.00050958,120]
[320902475,1711675856318,-747.81,0.00050958,120]
[320902476,1711675856327,-650.83,0.00050958,120]
[320902477,1711675856338,-500.0,0.00050958,120]
[320902478,1711675856347,-2921.68,0.00050958,120]
[320902479,1711675856356,-730.8,0.00050958,120]
[320902480,1711675856366,-500.0,0.00050958,120]
[320902481,1711675856375,-500.0,0.00050958,120]
[320902482,1711675856384,-999.85,0.00050958,120]
[320902483,1711675856394,-500.0,0.00050958,120]
[320902484,1711675856403,-521.93,0.00050958,120]
[320902485,1711675856412,-630.48,0.00050958,120]
[320902486,1711675856421,-500.0,0.00050958,120]
[320902487,1711675856430,-670.56,0.00050958,120]
[320902488,1711675856439,-500.0,0.00050958,120]
[320902489,1711675856449,-705.67,0.00050958,120]
[320902490,1711675856458,-774.21,0.00050958,120]
[320902491,1711675856468,-802.58,0.00050958,120]
[320902492,1711675856477,-500.0,0.00050958,120]
[320902493,1711675856486,-500.0,0.00050958,120]
[320902494,1711675856495,-2206.6,0.00050958,120]
[320902495,1711675856504,-676.97,0.00050958,120]
[320902496,1711675856514,-500.0,0.00050958,120]
[320902497,1711675856523,-542.79,0.00050958,120]
[320902498,1711675856532,-746.08,0.00050958,120]
[320902499,1711675856542,-500.0,0.00050958,120]
[320902500,1711675856552,-1529.53,0.00050958,120]
[320902501,1711675856561,-799.19,0.00050958,120]
[320902502,1711675856571,-629.58,0.00050958,120]
[320902503,1711675856581,-675.33,0.00050958,120]
[320902504,1711675856590,-664.66,0.00050958,120]
[320902505,1711675856599,-656.75,0.00050958,120]
[320902506,1711675856609,-1380.78,0.00050958,120]
[320902507,1711675856618,-1785.47,0.00050958,120]
[320902508,1711675856627,-500.0,0.00050958,120]
[320902509,1711675856638,-500.0,0.00050958,120]
[320902510,1711675856647,-500.0,0.00050958,120]
[320902511,1711675856657,-1169.81,0.00050958,120]
[320902512,1711675856666,-748.62,0.00050958,120]
[320902513,1711675856675,-970.09,0.00050958,120]
[320902514,1711675856686,-978.95,0.00050958,120]
[320902515,1711675856698,-150.0,0.00050966,30]
[320902516,1711675856707,-150.0,0.00050967,30]
[320902517,1711675856716,-200.0,0.00050975,30]
[320902518,1711675856726,-749.06013115,0.0005098,48]
[320902519,1711675856735,-150.0,0.0005099,7]
[320902520,1711675856744,-246.90262119,0.00050996,30]
[320902521,1711675856753,-450.00000001,0.00051,120]
[320902522,1711675856763,-2000.0,0.00051,120]
[320902523,1711675856773,-17602.0,0.00051,120]
[320902524,1711675856783,-200.0,0.00051006,30]
[320902525,1711675856792,-150.0,0.00051008,7]
[320902526,1711675856802,-302.42222222,0.00051014,120]
[320902527,1711675856811,-150.0,0.00051035,30]
[320902528,1711675856821,-200.0,0.00051037,30]
[320902529,1711675856830,-246.90262119,0.00051042,30]
[320902530,1711675856840,-150.0,0.00051055,30]
[320902531,1711675856849,-200.0,0.00051068,30]
[320902532,1711675856859,-246.90262119,0.00051087,30]
[320902533,1711675856913,-200.0,0.000511,30]
[320902534,1711675856923,-150.0,0.00051104,30]
[320902535,1711675856932,-200.0,0.00051131,30]
[320902536,1711675856942,-246.90262119,0.00051132,30]
[320902537,1711675856951,-48900.4266312,0.00051141,25]
[320902538,1711675856960,-150.0,0.00051143,30]
[320902539,1711675856970,-150.0,0.00051156,7]
[320902540,1711675856979,-200.0,0.00051162,30]
[320902541,1711675856989,-150.0,0.00051172,30]
[320902542,1711675856998,-246.90262119,0.00051177,30]
[320902543,1711675857007,-200.0,0.00051194,30]
[320902544,1711675857017,-154.14604573,0.00051211,7]
[320902545,1711675857026,-681.75,0.0005122,120]
[320902546,1711675857036,-20767.47986307,0.00051221,8]
[320902547,1711675857219,-439.3,0.00051221,8]
[320902548,1711675857249,-308.46,0.00050136,120]
[320902549,1711675857263,-191.54,0.00050136,120]
[320902550,1711675857272,-428.61941707,0.00051221,8]
[320902551,1711675857284,-315.19030927,0.00051221,8]
[320902552,1711675857581,-533.2592136,0.00049315,120]
[320902553,1711675857590,-361.16194535,0.00049315,120]
[320902554,1711675857604,-85.68538236,0.00049315,120]
[320902555,1711675857613,-307.71260645,0.00049497,2]
[320902556,1711675857623,-500.0,0.0005041,120]
[320902557,1711675857633,-500.0,0.00050684,120]
[320902558,1711675857642,-23.66068473,0.00050958,120]
[320902559,1711675858278,-272.54483639,0.00049315,120]
[320902560,1711675858287,-363.13222082,0.0005,2]
[320902561,1711675858297,-257.54749483,0.00050958,120]
[320902562,1711675858307,-558.03051325,0.00051221,8]
[320902563,1711675858323,-6011.38962685,0.00051221,8]
[320902564,1711675858353,-212.1009372,0.00051221,8]
[320902565,1711675858687,-265.52910568,0.00046264,7]
[320902566,1711675858697,-214.22803732,0.00049315,120]
[320902567,1711675858707,-1987.86,0.00049315,120]
[320902568,1711675858717,-1987.86,0.00049589,120]
[320902569,1711675858728,-1987.86,0.00049863,120]
[320902570,1711675858738,-197.70807527,0.0005,2]
[320902571,1711675858748,-1987.86,0.00050136,120]
[320902572,1711675858758,-1987.86,0.0005041,120]
[320902573,1711675858770,-102.23478173,0.00051221,8]
[320902581,1711675952236,271.9,0.00026777,2]
[320902582,1711676026999,59531.24705613,0.00026777,2]
[320902583,1711676101957,3674.51945434,0.00024845,2]
[320902584,1711676101985,5984.4088057,0.00024845,2]
[320902585,1711676307394,-236.85226153,0.00025437,2]
[320902586,1711676307414,-208408.53130005,0.00026777,2]
[320902596,1711676816267,19777.13984589,0.00026777,2]
[320902597,1711676851828,-207.0,0.000272,2]
[320902601,1711677031482,-300.0,0.000396,14]
[320902602,1711677031493,-600.0,0.000397,14]
[320902603,1711677031503,-900.0,0.000398,14]
[320902604,1711677031514,-154.80555812,0.000398,2]
[320902605,1711677031525,-1200.0,0.000399,14]
[320902606,1711677031535,-11047.9129369,0.000404,2]
[320902607,1711677031546,-1624.04519557,0.000404,14]
[320902608,1711677031556,-174.67159916,0.000404,8]
[320902609,1711677031566,-3717.2427074,0.000404,2]
[320902610,1711677031577,-758.53044369,0.000404,32]
[320902611,1711677031588,-197.70807526,0.000404,2]
[320902612,1711677031598,-1026.63369642,0.000404,2]
[320902613,1711677031609,-307.71260644,0.000404,2]
[320902614,1711677031619,-370.0,0.0004047,15]
[320902615,1711677031630,-602.0,0.0004047,15]
[320902616,1711677031640,-187.0,0.0004047,15]
[320902617,1711677031650,-370.0,0.0004048,15]
[320902618,1711677031661,-602.0,0.0004048,15]
[320902619,1711677031672,-154.0,0.0004048,15]
[320902620,1711677031682,-187.0,0.0004048,15]
[320902621,1711677031692,-370.0,0.0004049,15]
[320902622,1711677031702,-602.0,0.0004049,15]
[320902623,1711677031712,-150.5,0.0004049,15]
[320902624,1711677031722,-8962.39890065,0.0004049,2]
[320902625,1711677031735,-187.0,0.0004049,15]
[320902626,1711677031745,-499.99,0.0004049,2]
[320902627,1711677031755,-2951.55512892,0.00040497,2]
[320902628,1711677031765,-4817.33801464,0.00040498,5]
[320902629,1711677031776,-155.37739473,0.00040498,4]
[320902630,1711677031786,-182.48239363,0.00040498,2]
[320902631,1711677031795,-1886.12840505,0.00040499,2]
[320902632,1711677031805,-1902.91812276,0.000405,30]
[320902633,1711677031818,-26789.803681,0.000405,30]
[320902724,1711677037415,-3183843.91014363,0.000405,30]
[320902725,1711677037427,-347.81,0.000405,7]
[320902726,1711677037437,-221.1,0.000405,7]
[320902727,1711677037447,-214.25,0.000405,7]
[320902728,1711677037456,-7647.47,0.000405,10]
[320902729,1711677037466,-286.39719897,0.00040936,60]
[320902730,1711677037475,-203.66,0.0004112,2]
[320902731,1711677037485,-11047.91293684,0.00041944,2]
[320902732,1711677037495,-3717.24270739,0.00041944,2]
[320902733,1711677037505,-250.0,0.00041968,112]
[320902734,1711677037515,-1624.04519554,0.00042497,17]
[320902735,1711677037525,-758.53044365,0.00043225,36]
[320902736,1711677037534,-11047.91293684,0.00043489,2]
[320902737,1711677037544,-3717.24270739,0.00043489,2]
[320902738,1711677037554,-164.13552866,0.00043584,7]
[320902739,1711677037563,-1624.04519554,0.00044593,19]
[320902740,1711677037572,-11047.91293684,0.00045033,2]
[320902741,1711677037582,-3717.24270739,0.00045033,2]
[320902742,1711677037591,-179.21,0.00045581,120]
[320902743,1711677037601,-179.56,0.00045954,2]
[320902744,1711677037611,-336.99,0.00045971,15]
[320902745,1711677037620,-591.25,0.00046025,2]
[320902746,1711677037630,-758.53044365,0.0004605,40]
[320902747,1711677037639,-347.81,0.000463,7]
[320902748,1711677037648,-221.1,0.000463,7]
[320902749,1711677037657,-214.25,0.000463,7]
[320902750,1711677037667,-299.97,0.00046405,2]
[320902751,1711677037678,-11047.91293684,0.00046578,2]
[320902752,1711677037687,-3717.24270739,0.00046578,2]
[320902753,1711677037697,-179.46,0.00046641,120]
[320902754,1711677037706,-1624.04519554,0.0004669,22]
[320902755,1711677037716,-1026.63369642,0.00046999,2]
[320902756,1711677037725,-550.50813601,0.00047068,2]
[320902757,1711677037734,-256.736758,0.00047136,30]
[320902758,1711677037744,-1000.0,0.00047529,2]
[320902759,1711677037753,-256.736758,0.00047726,30]
[320902760,1711677037762,-157.67366138,0.0004784,30]
[320902761,1711677037771,-303.08888889,0.00048,120]
[320902762,1711677037782,-178.17040561,0.00048095,30]
[320902763,1711677037791,-11047.91293684,0.00048122,2]
[320902764,1711677037800,-3717.24270739,0.00048122,2]
[320902765,1711677037810,-175.33,0.00048312,2]
[320902766,1711677037819,-256.736758,0.00048315,30]
[320902767,1711677037829,-794.03738413,0.0004859,10]
[320902769,1711677037838,-303.08888889,0.00048603,120]
[320902771,1711677037847,-299.97,0.00048669,2]
[320902772,1711677037856,-347.81,0.000487,7]
[320902773,1711677037865,-221.1,0.000487,7]
[320902774,1711677037874,-214.25,0.000487,7]
[320902775,1711677037883,-336.99,0.00048711,15]
[320902776,1711677037893,-591.25,0.00048765,2]
[320902777,1711677037903,-1624.04519554,0.00048786,25]
[320902778,1711677037912,-1500.0,0.000488,17]
[320902779,1711677037921,-758.53044365,0.00048875,45]
[320902780,1711677037932,-165.0,0.000489,2]
[320902781,1711677037941,-300.0,0.000489,17]
[320902783,1711677037950,-256.736758,0.00048904,30]
[320902784,1711677037959,-150.0,0.00048913,120]
[320902786,1711677037969,-157.67366138,0.00048984,30]
[320902787,1711677037979,-835062.37876881,0.00049,2]
[320902788,1711677038191,-469.8670666,0.00049,2]
[320902789,1711677038203,-31962.79144844,0.00049,2]
[320902790,1711677038237,-4252.89399369,0.00049,2]
[320902791,1711677038248,-1006.31068984,0.00049,2]
[320902792,1711677038274,-19177.1075461,0.00049,2]
[320902793,1711677039564,-1006.42522375,0.00049,2]
[320902794,1711677039575,-1253.68720596,0.00049,2]
[320902795,1711677039623,-1191.88699385,0.00049,2]
[320902796,1711677039686,-671.67242347,0.00049,2]
[320902797,1711677039746,-473.38500005,0.00049,2]
[320902798,1711677039758,-2018.55080121,0.00049,2]
[320902799,1711677039809,-337.02875286,0.00049,2]
[320902800,1711677039868,-291.72,0.00049,2]
[320902806,1711677042486,-447.19,0.00046468,2]
[320902807,1711677042495,-2420.35544213,0.00049,2]
[320902814,1711677045523,-282216.55901009,0.00049,2]
[320902815,1711677045626,-21303.67603263,0.00049,2]
[320902816,1711677045734,-11265.12473964,0.00049,2]
[320902823,1711677285696,-988.74278711,0.00029,15]
[320902832,1711678231674,-197.0,0.00029,2]
[320902834,1711678231684,-183.11964654,0.00038,2]
[320902840,1711678231738,-2778.3345699,0.00038,2]
[320902842,1711678231748,-483.77823494,0.00039,120]
[320902844,1711678231760,-491.01788678,0.00039,120]
[320902846,1711678231771,-173.03680009,0.00039,120]
[320902848,1711678231781,-99.69020108,0.00039182,2]
[320902850,1711678231808,-111.63549192,0.00039182,2]
[320902851,1711678231817,-299.97,0.00039283,2]
[320902852,1711678231826,-1448.32,0.00039792,2]
[320902853,1711678231836,-179.21,0.00039869,120]
[320902854,1711678231845,-310.00982749,0.000401,2]
[320902855,1711678231854,-384.53468059,0.0004019,2]
[320902856,1711678231878,-936.75035845,0.0004019,2]
[320902857,1711678231926,-5711.47266648,0.0004019,2]
[320902858,1711678231988,-987.83605108,0.0004019,2]
[320902892,1711678237613,-472.36284,0.0004019,2]
[320902893,1711678237671,-2498.41354663,0.0004019,2]
[320902911,1711678239677,-1539.62228829,0.0004019,2]
[320902912,1711678239769,-1249.63971752,0.0004019,2]
[320902913,1711678242306,-308.43660014,0.0004019,2]
[320902915,1711678242999,-509.65489478,0.0004019,2]
[320902916,1711678243039,-129.5151036,0.0004019,2]
[320902927,1711678245806,-270.42728545,0.0004019,2]
[320902928,1711678245869,-423.40345519,0.0004019,2]
[320902947,1711679432462,-1053.69192567,0.00029,2]
[320902948,1711679432472,-2200.38194403,0.00029,2]
[320902949,1711679432481,-187.0,0.000291,2]
[320902950,1711679432491,-919.326198,0.0003713,2]
[320902951,1711679432501,-284.97,0.00037317,2]
[320902952,1711679432510,-168.80419149,0.00037515,2]
[320902953,1711679432519,-191.33,0.00039004,2]
[320902954,1711679432530,-377.76,0.00039076,15]
[320902955,1711679432540,-169.71,0.00039152,2]
[320902956,1711679432549,-150.0,0.00039181,4]
[320902957,1711679432559,-9820.87551611,0.00039182,4]
[320902958,1711679432583,-8778.74050146,0.00039182,4]
[320902959,1711679432594,-2956.22921722,0.00039182,4]
[320902960,1711679432614,-9659.34957176,0.00039182,4]
[320902961,1711679432623,-964.87,0.00039183,2]
[320902962,1711679432632,-250.0,0.00039202,112]
[320902963,1711679432641,-5722.82481433,0.00039225,2]
[320902964,1711679432650,-7647.47,0.00039235,10]
[320902965,1711679432660,-1000.0,0.00039236,2]
[320902966,1711679432669,-153.58,0.00039566,2]
[320902967,1711679432679,-284.97,0.00039581,2]
[320902968,1711679432689,-150.0,0.00039785,2]
[320902969,1711679432701,-150.0,0.0003993,2]
[320902970,1711679432710,-234.01443,0.00040099,6]
[320902971,1711679432719,-341.01470224,0.000401,2]
[320902972,1711679432730,-65113.59491341,0.0004019,2]
[320902973,1711679432739,-1436.562,0.0004019,30]
[320902974,1711679432748,-522.09575,0.0004019,3]
[320902975,1711679432757,-102337.52823187,0.000402,120]
[320902976,1711679432780,-936.82210907,0.000402,120]
[320902977,1711679437775,-484.5265281,0.000402,120]
[320902978,1711679437788,-558.64119013,0.000402,120]
[320902979,1711679437800,-394.52739516,0.000402,120]
[320902980,1711679437841,-521.72355865,0.000402,120]
[320902981,1711679437955,-649.11246481,0.000402,120]
[320902982,1711679437967,-1869.07999907,0.000402,120]
[320902983,1711679438125,-6062.9094044,0.000402,120]
[320902984,1711679438137,-925.30673529,0.000402,120]
[320902985,1711679438189,-274.17721476,0.000402,120]
[320902988,1711679439919,-1649.69314155,0.000402,120]
[320902989,1711679439942,-2054.96527202,0.000402,120]
[320902990,1711679439979,-514.63207778,0.000402,120]
[320902991,1711679439991,-1404.33864976,0.000402,120]
[320902992,1711679440004,-521.81754638,0.000402,120]
[320902993,1711679440016,-5114.10009646,0.000402,120]
[320902994,1711679440061,-502.79967831,0.000402,120]
[320902995,1711679440073,-699.74385355,0.000402,120]
[320902996,1711679440084,-2446.08396475,0.000402,120]
[320902997,1711679440096,-1601.09676919,0.000402,120]
[320902998,1711679440121,-1736.41306025,0.000402,120]
[320902999,1711679442581,-4868.16137878,0.000402,120]
[320903000,1711679442591,-1452.67383122,0.000402,2]
[320903001,1711679442603,-1943.73777565,0.000402,2]
[320903002,1711679442613,-1488.70809593,0.000404,14]
[320903003,1711679442623,-684.42246428,0.000404,2]
[320903004,1711679442632,-1900.67369022,0.000404,2]
[320903005,1711679442642,-310.00982749,0.000404,2]
[320903006,1711679442651,-496.19406034,0.000404,2]
[320903007,1711679442660,-341.01470224,0.00040458,2]
[320903008,1711679442670,-259.0,0.0004047,15]
[320903009,1711679442679,-422.0,0.0004047,15]
[320903010,1711679442693,-150.5,0.0004047,15]
[320903011,1711679442703,-259.0,0.0004048,15]
[320903013,1711679442712,-422.0,0.0004048,15]
[320903015,1711679442722,-150.5,0.0004048,15]
[320903017,1711679442731,-259.0,0.0004049,15]
[320903019,1711679442741,-422.0,0.0004049,15]
[320903020,1711679442750,-150.5,0.0004049,15]
[320903021,1711679442760,-170.96692494,0.0004049,2]
[320903022,1711679442769,-457.91594379,0.00040497,2]
[320903023,1711679442778,-394.07687043,0.00040498,3]
[320903024,1711679442789,-317.22823789,0.00040499,31]
[320903025,1711679442800,-161.36076894,0.00040499,30]
[320903026,1711679442813,-623312.11949468,0.000405,30]
[320903027,1711679442831,-515.83618102,0.000405,30]
[320903029,1711679442874,-3300.28610823,0.000405,30]
[320903030,1711679442911,-54985.03241126,0.000405,30]
[320903031,1711679442923,-300.175,0.000405,30]
[320903032,1711679442935,-1757.50985608,0.000405,30]
[320903033,1711679442946,-766.95652869,0.000405,30]
[320903034,1711679442966,-496.74013802,0.000405,30]
[320903035,1711679442979,-392.347002,0.000405,30]
[320903036,1711679442991,-19617.80460416,0.000405,30]
[320903037,1711679443003,-1100.02317178,0.000405,30]
[320903038,1711679443015,-2675.7928919,0.000405,30]
[320903039,1711679443036,-796.75772232,0.000405,30]
[320903040,1711679443048,-460.32635449,0.000405,30]
[320903041,1711679443060,-1280.42517282,0.000405,30]
[320903042,1711679443087,-780.38096398,0.000405,30]
[320903043,1711679443141,-2023.15282626,0.000405,30]
[320903044,1711679443153,-5102.57296048,0.000405,30]
[320903045,1711679443230,-486.91192548,0.000405,30]
[320903046,1711679443269,-3198.06694715,0.000405,30]
[320903047,1711679443281,-3972.09929284,0.000405,30]
[320903090,1711679445924,-14894.47521562,0.000405,30]
[320903091,1711679445936,-17815.4776,0.000405,30]
[320903092,1711679445984,-1744.22974663,0.000405,30]
[320903093,1711679446047,-8243.69999789,0.000405,30]
[320903094,1711679446058,-17104.05736243,0.000405,30]
[320903095,1711679446069,-1145.62207892,0.000405,30]
[320903096,1711679446081,-348.5255592,0.000405,30]
[320903097,1711679446092,-458.09629476,0.000405,30]
[320903098,1711679446104,-721.79454768,0.000405,30]
[320903099,1711679446119,-2218.45898703,0.000405,30]
[320903100,1711679446174,-8553.80807728,0.000405,30]
[320903101,1711679446294,-203927.87298702,0.000405,30]
[320903105,1711680440590,5000.0,0.0003,120]
[320903106,1711680477341,1016.0,0.00027008,120]
[320903107,1711680477365,6604.0,0.00027008,120]
[320903126,1711680632106,-1004.11251488,0.00034547,4]
[320903127,1711680632115,-95.52272145,0.00034548,10]
[320903128,1711680632216,-54.47727855,0.00034548,10]
[320903129,1711680632226,-277.1,0.00037195,2]
[320903130,1711680632235,-956.63,0.00039066,2]
[320903131,1711680632245,-129.57902798,0.00039068,2]
[320903132,1711680632273,-574.48097202,0.00039068,2]
[320903133,1711680632283,-250.0,0.00039098,2]
[320903134,1711680632292,-250.0,0.00039152,112]
[320903135,1711680632301,-364.7,0.00039153,15]
[320903136,1711680632310,-477.94,0.00039154,2]
[320903137,1711680632319,-296.85,0.00039172,2]
[320903138,1711680632328,-499.99,0.00039172,2]
[320903139,1711680632339,-500.0,0.00039198,2]
[320903140,1711680632348,-268.51231522,0.00039234,4]
[320903141,1711680632358,-1000.0,0.00039235,2]
[320903142,1711680632367,-2583.52671276,0.00039235,2]
[320903143,1711680632418,-4576.99214732,0.00039235,2]
[320903177,1711680637990,-746.7120074,0.00039235,2]
[320903178,1711680638048,-2183.16426548,0.00039235,2]
[320903179,1711680638107,-1253.79160612,0.00039235,2]
[320903180,1711680638118,-1775.9,0.00039235,2]
[320903181,1711680638163,-3123.50306894,0.00039235,2]
[320903182,1711680638248,-5015.92869596,0.00039235,2]
[320903183,1711680638311,-2630.48149602,0.00039235,2]
[320903184,1711680638320,-110.51566124,0.0003928,2]
[320903185,1711680638339,-59.19433876,0.0003928,2]
[320903186,1711680638349,-170.23,0.0003929,2]
[320903187,1711680638358,-179.21,0.00039324,120]
[320903188,1711680638367,-277.1,0.00039459,2]
[320903189,1711680638376,-170.23,0.00039972,2]
[320903190,1711680638386,-5406.64754168,0.0004,3]
[320903191,1711680638397,-84593.35245832,0.0004,3]
[320903192,1711680638406,-234.01443,0.0004,6]
[320903193,1711680638416,-153.58,0.00040034,2]
[320903194,1711680638426,-808.66171245,0.0004006,2]
[320903195,1711680638436,-179.21,0.00040108,120]
[320903196,1711680638445,-800.0,0.00040173,15]
[320903198,1711680638455,-183.365945,0.00040173,20]
[320903200,1711680638464,-200.0,0.00040358,20]
[320903202,1711680638472,-1364.649088,0.000404,14]
[320903204,1711680638482,-3166.69969374,0.000404,2]
[320903206,1711680638491,-306.91323213,0.000404,2]
[320903208,1711680638500,-313.73934351,0.000404,2]
[320903210,1711680638509,-4764.02522148,0.00040499,4]
[320903212,1711680638518,-20787.953348,0.000405,30]
[320903214,1711680638530,-21083.32017021,0.000405,30]
[320903219,1711680640078,-385.33,0.000405,30]
[320903220,1711680640093,-694.59680346,0.000405,30]
[320903221,1711680640306,-85847.27301925,0.000405,30]
[320903222,1711680640318,-3397.65057247,0.000405,30]
[320903223,1711680640419,-733.881,0.000405,30]
[320903224,1711680640430,-386.13999998,0.000405,30]
[320903231,1711680643223,-28846.1124209,0.000405,30]
[320903232,1711680643390,-3255.20398872,0.000405,30]
[320903246,1711680646167,-2686.13690458,0.000405,30]
[320903247,1711680646455,-43386.46821623,0.000405,30]
[320903252,1711681333971,295.72278928,0.00027008,7]
[320903253,1711681380247,-1240.0,0.00027008,2]
[320903254,1711681383818,25000.0,1.2e-05,3]
[320903255,1711681383841,212.3132292,1.2e-05,3]
[320903256,1711681383861,212.3132292,1.2e-05,3]
[320903257,1711681383882,212.3132292,1.2e-05,3]
[320903258,1711681383902,212.3132292,1.2e-05,3]
[320903259,1711681383922,212.3132292,1.2e-05,3]
[320903260,1711681383942,212.3132292,1.2e-05,3]
[320903261,1711681383964,212.3132292,1.2e-05,3]
[320903262,1711681383984,212.3132292,1.2e-05,3]
[320903263,1711681384004,212.3132292,1.2e-05,3]
[320903264,1711681384025,212.3132292,1.2e-05,3]
[320903265,1711681384050,25000.0,1.2e-05,3]
[320903266,1711681384072,25000.0,1.2e-05,3]
[320903267,1711681384095,1400.03513658,1.2e-05,3]
[320903268,1711681384252,23599.96486342,1.2e-05,3]
[320903269,1711681384281,5088.58482668,1.2e-05,3]
[320903270,1711681384308,11072.99363238,1.2e-05,3]
[320903271,1711681384330,11072.99363238,1.2e-05,3]
[320903272,1711681384355,11072.99363238,1.2e-05,3]
[320903273,1711681384377,11072.99363238,1.2e-05,3]
[320903274,1711681384400,5542.64320896,1.2e-05,3]
[320903275,1711681384705,5530.35042342,1.2e-05,3]
[320903276,1711681384727,1072.99363238,1.2e-05,3]
[320903277,1711681384749,1072.99363238,1.2e-05,3]
[320903278,1711681384771,1072.99363238,1.2e-05,3]
[320903279,1711681384794,1072.99363238,1.2e-05,3]
[320903280,1711681384817,68700.84247564,1.2e-05,3]
[320903281,1711681385112,37550.05752236,1.2e-05,3]
[320903282,1711681385136,24243.76146723,1.2e-05,3]
[320903283,1711681385160,8000.0,1.2e-05,3]
[320903284,1711681385184,8729.34843899,1.2e-05,3]
[320903285,1711681385505,78523.16742858,1.2e-05,3]
[320903286,1711681385916,78523.16742858,1.2e-05,3]
[320903287,1711681386313,78523.16742858,1.2e-05,3]
[320903288,1711681386726,78523.16742858,1.2e-05,3]
[320903289,1711681387142,78523.16742858,1.2e-05,3]
[320903290,1711681387576,78523.16642858,1.2e-05,3]
[320903291,1711681391572,1033.18575493,1.2e-05,3]
[320903292,1711681576904,435.07979,0.0002084,2]
[320903293,1711681576935,435.0798,0.0002334,2]
[320903315,1711681832262,-435.0798,0.0002584,2]
[320903317,1711681832271,-0.21405089,0.00027008,2]
[320903319,1711681832281,-187.0,0.000279,2]